bitfinex-derivatives/quotes_BTCF0:USTF0_20250709
["timestamp","ask_amount","ask_price","bid_price","bid_amount"]
[1752021244026,1.10774448,108880.0,108870.0,0.29891473]
[1752021244822,1.10874448,108880.0,108870.0,0.29891473]
[1752021245126,0.78874448,108880.0,108870.0,0.29891473]
[1752021245528,0.78974448,108880.0,108870.0,0.29891473]
[1752021245829,0.2885838,108880.0,108870.0,0.34017238]
[1752021246129,0.78974448,108880.0,108870.0,0.34017238]
[1752021246629,0.79174448,108880.0,108870.0,0.34017238]
[1752021248027,0.78974448,108880.0,108870.0,0.34017238]
[1752021248226,0.79374448,108880.0,108870.0,0.34017238]
[1752021249831,0.79374448,108880.0,108870.0,0.25764792]
[1752021250730,0.2925838,108880.0,108870.0,0.25764792]
[1752021250932,0.79374448,108880.0,108870.0,0.50822826]
[1752021251230,0.54316414,108880.0,108870.0,0.50822826]
[1752021252137,1.16784414,108880.0,108870.0,0.50696284]
[1752021252330,1.16784414,108880.0,108870.0,0.56198078]
[1752021258944,1.16784414,108880.0,108870.0,0.52069826]
[1752021260343,0.51266414,108880.0,108870.0,0.60322272]
[1752021260554,0.51266414,108880.0,108870.0,0.99442272]
[1752021260555,1.13734414,108880.0,108870.0,0.99442272]
[1752021261459,1.13734414,108880.0,108870.0,1.00877957]
[1752021262146,0.51266414,108880.0,108870.0,0.95376163]
[1752021262350,1.13734414,108880.0,108870.0,0.95376163]
[1752021264054,0.2620838,108880.0,108870.0,0.95376163]
[1752021264354,0.8867638,108880.0,108870.0,0.95376163]
[1752021264654,0.8867638,108880.0,108870.0,1.01139059]
[1752021264856,0.8867638,108880.0,108870.0,0.90123717]
[1752021265654,0.8827638,108880.0,108870.0,0.90123717]
[1752021265855,0.8847638,108880.0,108870.0,0.90123717]
[1752021266258,0.8827638,108880.0,108870.0,0.90123717]
[1752021266457,0.8837638,108880.0,108870.0,0.90123717]
[1752021268061,0.8837638,108880.0,108870.0,0.65065683]
[1752021268355,0.8837638,108880.0,108870.0,0.90123717]
[1752021269956,0.8837638,108880.0,108870.0,1.01139059]
[1752021270455,0.8837638,108880.0,108870.0,0.76081025]
[1752021270656,1.13434414,108880.0,108870.0,0.65139059]
[1752021277061,1.09490414,108880.0,108870.0,0.63892059]
[1752021279163,1.11831414,108880.0,108870.0,0.63892059]
[1752021279862,1.11831414,108880.0,108870.0,0.65139059]
[1752021280262,1.11831414,108880.0,108870.0,0.62139059]
[1752021286659,1.11831414,108880.0,108870.0,0.37081025]
[1752021286859,1.11831414,108880.0,108870.0,0.62139059]
[1752021287874,1.14851414,108880.0,108870.0,0.62139059]
[1752021288869,1.14851414,108880.0,108870.0,0.51123717]
[1752021290272,1.14851414,108880.0,108870.0,0.62139059]
[1752021290575,1.14851414,108880.0,108870.0,0.51123717]
[1752021290872,1.14851414,108880.0,108870.0,0.62139059]
[1752021298679,1.14851414,108880.0,108870.0,0.62121341]
[1752021299176,1.39909448,108880.0,108870.0,0.32696307]
[1752021299482,1.39909448,108880.0,108870.0,0.28052512]
[1752021299872,1.39909448,108880.0,108870.0,0.09686442]
[1752021300077,1.96967482,108880.0,108870.0,0.09686442]
[1752021300280,1.71909448,108880.0,108870.0,0.09686442]
[1752021300677,1.71909448,108880.0,108870.0,0.15198928]
[1752021301378,1.71909448,108880.0,108870.0,0.06930453]
[1752021301581,1.71909448,108880.0,108870.0,0.11063147]
[1752021301767,1.96967482,108880.0,108870.0,0.0964518]
[1752021302174,0.1836607,108870.0,108860.0,0.0964518]
[1752021302379,0.83271104,108870.0,108860.0,0.0964518]
[1752021302582,0.85757104,108870.0,108860.0,0.0964518]
[1752021303080,0.85757104,108870.0,108860.0,0.04132694]
[1752021303677,0.85757104,108870.0,108860.0,0.22500454]
[1752021303884,0.53757104,108870.0,108860.0,0.04132694]
[1752021304380,0.1836776,108860.0,108850.0,0.68778985]
[1752021304583,1.16142794,108860.0,108850.0,0.68778985]
[1752021307085,0.9108476,108860.0,108850.0,0.68778985]
[1752021307385,1.16142794,108860.0,108850.0,0.68778985]
[1752021308475,1.16142794,108860.0,108850.0,0.70025985]
[1752021308676,1.16142794,108860.0,108850.0,0.68778985]
[1752021309277,0.9108476,108860.0,108850.0,0.68778985]
[1752021309486,1.16142794,108860.0,108850.0,0.70025985]
[1752021310488,1.16142794,108860.0,108850.0,0.64513499]
[1752021312281,1.16142794,108860.0,108850.0,0.74161766]
[1752021314187,1.17111502,108860.0,108850.0,0.77261766]
[1752021314487,1.16142794,108860.0,108850.0,0.77261766]
[1752021315375,0.9108476,108860.0,108850.0,0.77261766]
[1752021315579,1.16142794,108860.0,108850.0,0.77261766]
[1752021316488,0.8956776,108860.0,108850.0,0.77261766]
[1752021316692,1.16142794,108860.0,108850.0,0.68993291]
[1752021316882,1.16142794,108860.0,108850.0,0.67746291]
[1752021317094,1.16142794,108860.0,108850.0,0.68993291]
[1752021317988,1.16142794,108860.0,108850.0,0.43935257]
[1752021318185,1.16142794,108860.0,108850.0,0.68993291]
[1752021319992,1.14625794,108860.0,108850.0,0.67746291]
[1752021320183,1.14625794,108860.0,108850.0,0.68993291]
[1752021323291,1.12139794,108860.0,108850.0,0.67746291]
[1752021325292,1.14530794,108860.0,108850.0,0.76014766]
[1752021325987,1.14530794,108860.0,108850.0,0.77261766]
[1752021326497,1.14530794,108860.0,108850.0,0.7174928]
[1752021329199,1.14530794,108860.0,108850.0,0.74496147]
[1752021330599,1.14530794,108860.0,108850.0,0.71747179]
[1752021336204,1.14530794,108860.0,108850.0,0.46689145]
[1752021336504,1.14530794,108860.0,108850.0,0.74496147]
[1752021338605,1.14530794,108860.0,108850.0,0.49438113]
[1752021338805,1.14530794,108860.0,108850.0,0.74496147]
[1752021342209,1.14530794,108860.0,108850.0,0.71751841]
[1752021345014,1.14530794,108860.0,108850.0,0.46693807]
[1752021345202,1.14530794,108860.0,108850.0,0.71751841]
[1752021346411,1.14530794,108860.0,108850.0,0.69834598]
[1752021347914,1.14530794,108860.0,108850.0,0.44776564]
[1752021348114,1.14530794,108860.0,108850.0,0.69834598]
[1752021352113,1.14530794,108860.0,108850.0,0.44776564]
[1752021352320,1.14530794,108860.0,108850.0,0.61563562]
[1752021354426,1.14530794,108860.0,108850.0,0.36505528]
[1752021354615,1.14530794,108860.0,108850.0,0.61563562]
[1752021355423,1.14530794,108860.0,108850.0,0.72578904]
[1752021359625,1.14530794,108860.0,108850.0,0.4752087]
[1752021359825,1.14530794,108860.0,108850.0,0.72578904]
[1752021362328,1.14530794,108860.0,108850.0,0.69834292]
[1752021364723,0.8947276,108860.0,108850.0,0.69834292]
[1752021365029,0.9109576,108860.0,108850.0,0.69834292]
[1752021365232,1.16153794,108860.0,108850.0,0.69834292]
[1752021369934,1.16153794,108860.0,108850.0,0.72578904]
[1752021370429,1.16153794,108860.0,108850.0,0.61563562]
[1752021370631,1.16153794,108860.0,108850.0,0.72578904]
[1752021372739,1.16153794,108860.0,108850.0,0.4752087]
[1752021373035,1.16153794,108860.0,108850.0,0.72578904]
[1752021377339,1.16153794,108860.0,108850.0,0.4752087]
[1752021377540,1.16153794,108860.0,108850.0,0.72578904]
[1752021386245,1.16153794,108860.0,108850.0,0.71331904]
[1752021386446,1.16153794,108860.0,108850.0,0.68231904]
[1752021387047,1.16153794,108860.0,108850.0,0.57216562]
[1752021388842,1.16153794,108860.0,108850.0,0.68231904]
[1752021389848,1.16153794,108860.0,108850.0,0.69478904]
[1752021390148,1.16153794,108860.0,108850.0,0.68231904]
[1752021391552,1.16153794,108860.0,108850.0,0.69478904]
[1752021392151,1.16153794,108860.0,108850.0,0.66733945]
[1752021392551,1.16153794,108860.0,108850.0,0.41675911]
[1752021392754,1.16153794,108860.0,108850.0,0.66733945]
[1752021399568,0.9109576,108860.0,108850.0,0.66733945]
[1752021399863,1.16153794,108860.0,108850.0,0.66733945]
[1752021400866,1.16153794,108860.0,108850.0,0.41675911]
[1752021401066,1.16153794,108860.0,108850.0,0.69943945]
[1752021402165,1.16153794,108860.0,108850.0,0.80959287]
[1752021402467,1.16153794,108860.0,108850.0,0.72688904]
[1752021408973,0.9109576,108860.0,108850.0,0.72688904]
[1752021409163,1.16153794,108860.0,108850.0,0.72688904]
[1752021413778,0.9109576,108860.0,108850.0,0.72688904]
[1752021413973,1.16153794,108860.0,108850.0,0.72688904]
[1752021417673,1.13001794,108860.0,108850.0,1.08688904]
[1752021418474,1.13001794,108860.0,108850.0,0.69943906]
[1752021420079,0.8794376,108860.0,108850.0,1.01943906]
[1752021420273,1.13001794,108860.0,108850.0,0.69943906]
[1752021422680,1.13001794,108860.0,108850.0,0.72688904]
[1752021423280,0.8794376,108860.0,108850.0,0.72688904]
[1752021423482,1.13001794,108860.0,108850.0,0.72688904]
[1752021425680,1.16291794,108860.0,108850.0,0.72688904]
[1752021429383,0.9123376,108860.0,108850.0,0.72688904]
[1752021429583,1.16291794,108860.0,108850.0,0.72688904]
[1752021433685,1.16291794,108860.0,108850.0,0.69941957]
[1752021435089,1.16291794,108860.0,108850.0,1.05941957]
[1752021435289,0.8794376,108860.0,108850.0,1.05941957]
[1752021435489,0.8794376,108860.0,108850.0,1.09151957]
[1752021435791,0.8794376,108860.0,108850.0,0.73151957]
[1752021436182,0.8794376,108860.0,108850.0,1.04151957]
[1752021436384,0.8793576,108860.0,108850.0,1.29209991]
[1752021436583,0.8793576,108860.0,108850.0,0.95883562]
[1752021436785,0.8793576,108860.0,108850.0,1.06898904]
[1752021437292,0.07124,108860.0,108850.0,1.06898904]
[1752021437591,0.82561039,108870.0,108860.0,0.20321317]
[1752021437795,0.01750609,108870.0,108860.0,1.2877321]
[1752021437990,0.65852609,108870.0,108860.0,1.2877321]
[1752021438181,0.84218679,108870.0,108860.0,1.2877321]
[1752021438386,0.82560679,108870.0,108860.0,1.2877321]
[1752021438581,0.84218679,108870.0,108860.0,1.2877321]
[1752021439899,0.84218679,108870.0,108860.0,1.2326168]
[1752021441097,0.03408609,108870.0,108860.0,1.2326168]
[1752021441597,0.01750609,108870.0,108860.0,1.2326168]
[1752021441798,0.01750609,108870.0,108860.0,1.2404068]
[1752021442299,0.01750609,108870.0,108860.0,1.26788727]
[1752021442498,0.01750609,108870.0,108860.0,1.15773385]
[1752021442697,0.20116679,108870.0,108860.0,1.26788727]
[1752021443094,0.01750609,108870.0,108860.0,1.26009727]
[1752021444103,0.01750609,108870.0,108860.0,1.26788727]
[1752021445903,0.01750609,108870.0,108860.0,1.26009727]
[1752021447192,0.01750609,108870.0,108860.0,1.00951693]
[1752021447396,0.20116679,108870.0,108860.0,1.26009727]
[1752021447597,0.21753679,108870.0,108860.0,1.26009727]
[1752021448104,0.03387609,108870.0,108860.0,1.26009727]
[1752021448504,0.21753679,108870.0,108860.0,1.26009727]
[1752021454907,0.21753679,108870.0,108860.0,1.14994385]
[1752021456212,0.21753679,108870.0,108860.0,1.16430107]
[1752021459407,0.21753679,108870.0,108860.0,1.26198449]
[1752021460509,0.24853679,108870.0,108860.0,1.26198449]
[1752021469117,0.2310307,108870.0,108860.0,1.26198449]
[1752021470316,0.2310307,108870.0,108860.0,1.22958449]
[1752021475615,0.2310307,108870.0,108860.0,1.22958466]
[1752021482229,0.2310307,108870.0,108860.0,1.20211789]
[1752021483821,0.2310307,108870.0,108860.0,1.82647789]
[1752021489634,0.2310307,108870.0,108860.0,1.85827789]
[1752021490830,0.2310307,108870.0,108860.0,1.8439205]
[1752021491032,0.2310307,108870.0,108860.0,1.85827789]
[1752021491637,0.04737,108870.0,108860.0,1.85827789]
[1752021492032,0.04737,108870.0,108860.0,1.8439205]
[1752021492335,0.04737,108870.0,108860.0,1.88574445]
[1752021492737,0.2310307,108870.0,108860.0,1.88574445]
[1752021498440,0.94778384,108880.0,108870.0,0.1836607]
[1752021498739,0.21754614,108880.0,108870.0,0.9254572]
[1752021498939,0.21754614,108880.0,108870.0,0.84276822]
[1752021499432,0.24824614,108880.0,108870.0,0.84276822]
[1752021499739,0.24824614,108880.0,108870.0,0.83029822]
[1752021499939,0.24824614,108880.0,108870.0,0.84276822]
[1752021500241,0.24824614,108880.0,108870.0,0.92544453]
[1752021500638,0.25024614,108880.0,108870.0,0.92544453]
[1752021500840,0.03688954,108880.0,108870.0,0.95554453]
[1752021501237,0.03688954,108880.0,108870.0,0.87286822]
[1752021501437,0.22053334,108880.0,108870.0,0.87286822]
[1752021501638,0.03688954,108880.0,108870.0,0.95553887]
[1752021502345,0.03688954,108880.0,108870.0,0.98302164]
[1752021502842,0.07008954,108880.0,108870.0,0.98302164]
[1752021503440,0.05231,108880.0,108870.0,0.98302164]
[1752021504038,0.05231,108880.0,108870.0,0.95550572]
[1752021505842,0.0362,108880.0,108870.0,0.96329572]
[1752021506348,0.2198438,108880.0,108870.0,0.95550572]
[1752021506535,0.0362,108880.0,108870.0,0.95550572]
[1752021506734,0.2198438,108880.0,108870.0,0.70492538]
[1752021506946,0.2198438,108880.0,108870.0,0.95550572]
[1752021507145,0.2349838,108880.0,108870.0,0.95550572]
[1752021507344,0.2349838,108880.0,108870.0,0.60550572]
[1752021509058,0.2349838,108880.0,108870.0,0.96550572]
[1752021510159,0.48556414,108880.0,108870.0,0.96550572]
[1752021510650,0.2349838,108880.0,108870.0,0.94550572]
[1752021511458,0.05134,108880.0,108870.0,0.94550572]
[1752021512160,0.0362,108880.0,108870.0,0.94550572]
[1752021512351,0.0362,108880.0,108870.0,0.97302164]
[1752021512551,0.05134,108880.0,108870.0,0.97302164]
[1752021515056,0.2349838,108880.0,108870.0,0.61866446]
[1752021515261,0.2349838,108880.0,108870.0,0.95302063]
[1752021518560,0.2349838,108880.0,108870.0,0.8979477]
[1752021519564,0.05134,108880.0,108870.0,0.8979477]
[1752021520771,0.05134,108880.0,108870.0,0.84286721]
[1752021521272,0.2349838,108880.0,108870.0,0.52286721]
[1752021521567,0.2349838,108880.0,108870.0,0.84286721]
[1752021521969,0.48556414,108880.0,108870.0,0.84286721]
[1752021522268,0.48556414,108880.0,108870.0,0.89795376]
[1752021523067,0.50886414,108880.0,108870.0,1.17209376]
[1752021523268,0.48556414,108880.0,108870.0,1.17209376]
[1752021523470,0.50886414,108880.0,108870.0,1.17209376]
[1752021523671,0.54136414,108880.0,108870.0,1.17209376]
[1752021525170,0.51806414,108880.0,108870.0,1.17209376]
[1752021526170,0.2674838,108880.0,108870.0,1.17209376]
[1752021526472,0.51806414,108880.0,108870.0,1.17209376]
[1752021527173,0.51806414,108880.0,108870.0,1.2547145]
[1752021527774,0.51806414,108880.0,108870.0,1.19962795]
[1752021527972,0.54136414,108880.0,108870.0,1.19962795]
[1752021530173,0.2907838,108880.0,108870.0,1.19962795]
[1752021530374,0.54136414,108880.0,108870.0,1.19962795]
[1752021531577,0.54136414,108880.0,108870.0,1.52962795]
[1752021532282,0.54136414,108880.0,108870.0,1.55716063]
[1752021533277,0.54136414,108880.0,108870.0,1.22716063]
[1752021533476,0.54136414,108880.0,108870.0,1.54716063]
[1752021533777,0.51806414,108880.0,108870.0,1.54716063]
[1752021535277,0.54167414,108880.0,108870.0,1.54716044]
[1752021536580,0.54167414,108880.0,108870.0,1.22716044]
[1752021536877,0.54167414,108880.0,108870.0,1.19546044]
[1752021538181,0.54167414,108880.0,108870.0,1.19546091]
[1752021538778,0.79225448,108880.0,108870.0,0.10946834]
[1752021538971,1.11225448,108880.0,108870.0,0.28065904]
[1752021539174,0.79225448,108880.0,108870.0,0.30817057]
[1752021540182,0.79225448,108880.0,108870.0,0.28066492]
[1752021541284,0.79225448,108880.0,108870.0,0.29313492]
[1752021541485,0.79225448,108880.0,108870.0,0.28066492]
[1752021542580,0.79225448,108880.0,108870.0,0.29313492]
[1752021542784,0.79225448,108880.0,108870.0,0.28066573]
[1752021549487,0.79225448,108880.0,108870.0,0.33573388]
[1752021551593,0.79225448,108880.0,108870.0,0.33573407]
[1752021552292,0.79225448,108880.0,108870.0,0.2530863]
[1752021553895,0.79225448,108880.0,108870.0,0.33573407]
[1752021557802,0.79225448,108880.0,108870.0,0.34820407]
[1752021558100,0.79225448,108880.0,108870.0,0.33573407]
[1752021560304,0.79225448,108880.0,108870.0,0.34820407]
[1752021560609,0.79225448,108880.0,108870.0,0.33573407]
[1752021561598,0.79225448,108880.0,108870.0,0.34820407]
[1752021561905,0.79225448,108880.0,108870.0,0.33573407]
[1752021562405,0.2910938,108880.0,108870.0,0.33573407]
[1752021562610,0.79225448,108880.0,108870.0,0.33573407]
[1752021564898,0.2910938,108880.0,108870.0,0.59878441]
[1752021565103,0.79225448,108880.0,108870.0,0.61841441]
[1752021565302,0.79225448,108880.0,108870.0,0.63088441]
[1752021566101,0.79225448,108880.0,108870.0,0.38030404]
[1752021566301,0.50917414,108880.0,108870.0,0.57581623]
[1752021566500,0.2585938,108880.0,108870.0,0.57581623]
[1752021566797,0.50917414,108880.0,108870.0,0.57581623]
[1752021570409,0.50917414,108880.0,108870.0,0.29770466]
[1752021570613,1.13337414,108880.0,108870.0,0.548285]
[1752021572306,1.13337414,108880.0,108870.0,0.28392544]
[1752021572614,1.13337414,108880.0,108870.0,0.53450578]
[1752021573411,0.1866438,108880.0,108870.0,0.53450578]
[1752021573612,0.2019938,108880.0,108870.0,0.941285]
[1752021573800,0.1866438,108880.0,108870.0,0.941285]
[1752021574003,0.8108438,108880.0,108870.0,1.02393277]
[1752021574411,0.8261938,108880.0,108870.0,1.02393277]
[1752021574805,1.10003414,108880.0,108870.0,0.66393277]
[1752021575004,1.10003414,108880.0,108870.0,0.99393277]
[1752021576715,1.10003414,108880.0,108870.0,0.66393277]
[1752021577510,1.10003414,108880.0,108870.0,0.64957535]
[1752021578016,1.10003414,108880.0,108870.0,1.02957535]
[1752021579212,1.10003414,108880.0,108870.0,0.64957535]
[1752021579423,1.10003414,108880.0,108870.0,1.00957535]
[1752021580327,1.10003414,108880.0,108870.0,0.64957535]
[1752021580521,1.10003414,108880.0,108870.0,0.6639319]
[1752021580719,1.10003414,108880.0,108870.0,0.64957535]
[1752021580925,1.10003414,108880.0,108870.0,1.01957535]
[1752021581219,0.1866438,108880.0,108870.0,1.01957535]
[1752021581424,0.8261538,108880.0,108870.0,1.01957535]
[1752021581625,0.64251,108880.0,108870.0,1.01957535]
[1752021581817,0.64251,108880.0,108870.0,0.96445881]
[1752021582223,0.64251,108880.0,108870.0,0.99196446]
[1752021583230,0.003,108880.0,108870.0,1.62391446]
[1752021583728,0.003,108880.0,108870.0,1.61612446]
[1752021583923,0.01835,108880.0,108870.0,1.61612446]
[1752021584132,0.003,108880.0,108870.0,1.61612446]
[1752021584731,0.1866438,108880.0,108870.0,1.61612446]
[1752021585928,1.08377463,108890.0,108880.0,0.1836438]
[1752021585929,0.82524629,108890.0,108880.0,0.1836438]
[1752021586131,0.86385629,108890.0,108880.0,1.24215731]
[1752021586427,0.86385629,108890.0,108880.0,1.25148578]
[1752021586916,1.11443663,108890.0,108880.0,1.25148578]
[1752021587321,1.11543663,108890.0,108880.0,1.25148578]
[1752021588724,1.11543663,108890.0,108880.0,1.23901578]
[1752021589825,0.05705759,108890.0,108880.0,1.23901578]
[1752021590025,0.84194449,108890.0,108880.0,1.23901578]
[1752021591831,0.84194449,108890.0,108880.0,0.7378551]
[1752021592028,0.86596449,108890.0,108880.0,1.25148578]
[1752021592729,1.11654483,108890.0,108880.0,1.25148578]
[1752021593036,1.14824483,108890.0,108880.0,1.25148578]
[1752021593234,1.14824483,108890.0,108880.0,0.58067697]
[1752021593434,0.92846449,108890.0,108880.0,0.90067697]
[1752021593637,1.17904483,108890.0,108880.0,0.90067697]
[1752021593936,1.17904483,108890.0,108880.0,0.86652269]
[1752021594135,1.17904483,108890.0,108880.0,0.82677801]
[1752021595831,1.17904483,108890.0,108880.0,0.74417611]
[1752021596138,1.18004483,108890.0,108880.0,0.74417611]
[1752021596435,1.18004483,108890.0,108880.0,0.82677801]
[1752021596639,1.18004483,108890.0,108880.0,0.74417611]
[1752021598240,1.18004483,108890.0,108880.0,0.85403622]
[1752021599045,1.18004483,108890.0,108880.0,0.82173622]
[1752021599242,1.18004483,108890.0,108880.0,0.50173622]
[1752021600043,1.18004483,108890.0,108880.0,0.48020271]
[1752021602035,1.18004483,108890.0,108880.0,0.46512921]
[1752021604046,1.18004483,108890.0,108880.0,0.4349822]
[1752021606043,1.18004483,108890.0,108880.0,0.41344862]
[1752021609045,1.18004483,108890.0,108880.0,0.3833014]
[1752021610050,1.18004483,108890.0,108880.0,0.36822776]
[1752021610440,1.18004483,108890.0,108880.0,0.45082966]
[1752021610640,1.18004483,108890.0,108880.0,0.36822776]
[1752021610835,1.17988483,108890.0,108880.0,0.36822776]
[1752021611440,1.17988483,108890.0,108880.0,0.45082966]
[1752021612040,1.17988483,108890.0,108880.0,0.42929607]
[1752021612342,1.17988483,108890.0,108880.0,0.34669417]
[1752021613250,1.17988483,108890.0,108880.0,0.97727451]
[1752021613251,0.68309759,108890.0,108880.0,0.97727451]
[1752021613448,0.03572759,108890.0,108880.0,1.29295485]
[1752021613952,0.03572759,108890.0,108880.0,1.12497641]
[1752021614250,0.03572759,108890.0,108880.0,1.14413893]
[1752021614550,0.03572759,108890.0,108880.0,1.06153703]
[1752021614952,0.03572759,108890.0,108880.0,1.14413893]
[1752021615448,0.03372759,108890.0,108880.0,1.06453703]
[1752021615651,0.05774759,108890.0,108880.0,1.06653703]
[1752021619255,0.05774759,108890.0,108880.0,1.14913893]
[1752021619460,0.05774759,108890.0,108880.0,1.06653703]
[1752021619656,0.05774759,108890.0,108880.0,1.13878506]
[1752021620145,0.05774759,108890.0,108880.0,1.22138696]
[1752021620348,0.05774759,108890.0,108880.0,1.13878506]
[1752021620645,0.05774759,108890.0,108880.0,1.22138696]
[1752021622045,0.0469825,108890.0,108880.0,1.23215206]
[1752021622246,0.02760534,108890.0,108880.0,1.23215206]
[1752021622451,1.22892674,108910.0,108900.0,0.1836101]
[1752021622652,1.22892674,108910.0,108900.0,0.82495554]
[1752021623258,0.60464674,108910.0,108900.0,0.82495554]
[1752021623462,0.62046674,108910.0,108900.0,0.82495554]
[1752021624054,0.60370204,108910.0,108900.0,0.82495554]
[1752021624257,0.62108742,108910.0,108900.0,0.82495554]
[1752021624651,0.64567742,108910.0,108900.0,0.82495554]
[1752021626160,0.30329678,108910.0,108900.0,1.07553588]
[1752021626364,0.55387712,108910.0,108900.0,1.07553588]
[1752021626657,0.30329678,108910.0,108900.0,1.07553588]
[1752021627559,0.30129678,108910.0,108900.0,1.07553588]
[1752021629961,0.11769538,108910.0,108900.0,1.07553588]
[1752021630559,0.04738538,108910.0,108900.0,1.09436437]
[1752021630761,0.04738538,108910.0,108900.0,1.15856437]
[1752021631653,0.06320538,108910.0,108900.0,1.15856437]
[1752021632164,0.06320538,108910.0,108900.0,1.24107509]
[1752021634558,0.06320538,108910.0,108900.0,1.23030999]
[1752021634763,0.06320538,108910.0,108900.0,1.24107381]
[1752021636065,0.06320538,108910.0,108900.0,1.29603556]
[1752021637465,0.06320538,108910.0,108900.0,1.24107381]
[1752021640761,0.09390538,108910.0,108900.0,1.24107381]
[1752021641758,0.27749858,108910.0,108900.0,1.24107381]
[1752021641963,0.27749858,108910.0,108900.0,1.83247381]
[1752021642367,0.27749858,108910.0,108900.0,1.80087381]
[1752021643368,0.27749858,108910.0,108900.0,1.71836309]
[1752021644066,0.26167858,108910.0,108900.0,1.74303309]
[1752021644262,0.26167858,108910.0,108900.0,1.71836309]
[1752021644662,0.26167858,108910.0,108900.0,1.74303309]
[1752021646271,0.26167858,108910.0,108900.0,1.85318651]
[1752021651175,0.25306755,108910.0,108900.0,1.85318651]
[1752021651874,0.25306755,108910.0,108900.0,1.85318648]
[1752021652076,0.25306755,108910.0,108900.0,1.3520258]
[1752021652276,0.25306755,108910.0,108900.0,1.85318648]
[1752021652577,0.25306755,108910.0,108900.0,1.84242269]
[1752021661083,0.25306755,108910.0,108900.0,1.87482269]
[1752021661289,0.06947435,108910.0,108900.0,1.87482269]
[1752021662088,0.25306765,108910.0,108900.0,1.87482269]
[1752021662289,0.25306765,108910.0,108900.0,1.84732339]
[1752021664392,0.06947435,108910.0,108900.0,1.84732339]
[1752021664985,0.06947435,108910.0,108900.0,1.87952339]
[1752021666296,0.03877435,108910.0,108900.0,1.87952339]
[1752021666496,0.01738538,108910.0,108900.0,1.87952339]
[1752021672306,0.01738538,108910.0,108900.0,1.90702269]
[1752021673100,0.20097868,108910.0,108900.0,1.90702269]
[1752021675708,0.20097868,108910.0,108900.0,1.79686927]
[1752021679710,0.01738538,108910.0,108900.0,1.79686927]
[1752021683112,0.01738538,108910.0,108900.0,1.90702269]
[1752021684117,0.01738538,108910.0,108900.0,1.79686927]
[1752021685613,0.01738538,108910.0,108900.0,1.90702269]
[1752021689015,0.01738538,108910.0,108900.0,1.79686927]
[1752021692213,0.20097868,108910.0,108900.0,1.79686927]
[1752021692817,0.04868538,108910.0,108900.0,1.79686927]
[1752021693118,0.23227868,108910.0,108900.0,1.79686927]
[1752021693314,0.26537868,108910.0,108900.0,1.79686927]
[1752021693515,0.08178538,108910.0,108900.0,1.79686927]
[1752021694917,0.26537868,108910.0,108900.0,1.79686927]
[1752021699123,0.26537868,108910.0,108900.0,1.90707469]
[1752021709632,0.08178538,108910.0,108900.0,1.90707469]
[1752021709831,0.26537858,108910.0,108900.0,1.90707469]
[1752021711933,0.08178538,108910.0,108900.0,1.90707469]
[1752021712332,0.08178538,108910.0,108900.0,1.87952569]
[1752021712834,0.01738538,108910.0,108900.0,1.87952569]
[1752021717139,0.20097858,108910.0,108900.0,1.87952569]
[1752021721350,0.01738538,108910.0,108900.0,1.87952569]
[1752021722352,0.01738538,108910.0,108900.0,1.90707469]
[1752021723542,1e-08,108910.0,108900.0,2.15765503]
[1752021725153,1e-08,108910.0,108900.0,2.15865503]
[1752021725347,1e-08,108910.0,108900.0,2.15965503]
[1752021727055,1e-08,108910.0,108900.0,2.13498503]
[1752021727255,1e-08,108910.0,108900.0,2.45145503]
[1752021735458,0.002,108920.0,108910.0,0.1835932]
[1752021735760,0.002,108920.0,108910.0,1.25981465]
[1752021736350,0.002,108920.0,108910.0,1.27416468]
[1752021740260,0.002,108920.0,108910.0,1.27416422]
[1752021747758,0.002,108920.0,108910.0,1.24659118]
[1752021751670,0.002,108920.0,108910.0,1.26568983]
[1752021752370,0.002,108920.0,108910.0,1.23819194]
[1752021753573,0.0608,108930.0,108920.0,0.1835764]
[1752021753772,0.0608,108930.0,108920.0,2.03415016]
[1752021754069,0.0608,108930.0,108920.0,1.86870072]
[1752021754259,0.0608,108930.0,108920.0,2.11928106]
[1752021754467,0.0608,108930.0,108920.0,1.90994528]
[1752021755658,0.0618,108930.0,108920.0,1.82742755]
[1752021755863,0.0618,108930.0,108920.0,1.90994528]
[1752021756067,0.0638,108930.0,108920.0,1.90994528]
[1752021756267,0.0638,108930.0,108920.0,1.94254528]
[1752021756872,0.0638,108930.0,108920.0,1.95200783]
[1752021757566,0.0638,108930.0,108920.0,1.9520061]
[1752021759972,0.0638,108930.0,108920.0,2.2438061]
[1752021760362,0.003,108930.0,108920.0,2.49438644]
[1752021760567,0.003,108930.0,108920.0,2.2438061]
[1752021762370,0.003,108930.0,108920.0,2.21634824]
[1752021764671,0.0356,108930.0,108920.0,2.21634824]
[1752021765681,0.0356,108930.0,108920.0,1.92454824]
[1752021768783,0.0356,108930.0,108920.0,1.89698318]
[1752021771585,0.0356,108930.0,108920.0,2.18878318]
[1752021778593,0.0356,108930.0,108920.0,2.21634824]
[1752021779686,0.0356,108930.0,108920.0,2.10625747]
[1752021780288,0.0522,108930.0,108920.0,1.50282679]
[1752021780498,0.0833,108930.0,108920.0,2.00398747]
[1752021780795,0.0833,108930.0,108920.0,2.02767747]
[1752021782597,0.0667,108930.0,108920.0,2.02767747]
[1752021783399,0.0667,108930.0,108920.0,2.13776824]
[1752021785498,0.0667,108930.0,108920.0,2.13776864]
[1752021785704,0.0667,108930.0,108920.0,2.02767787]
[1752021786011,0.0667,108930.0,108920.0,2.13776864]
[1752021789806,0.0667,108930.0,108920.0,2.17026864]
[1752021792309,0.0667,108930.0,108920.0,2.20326864]
[1752021792610,0.003,108930.0,108920.0,2.09317787]
[1752021792806,0.003,108930.0,108920.0,2.34375821]
[1752021793109,0.003,108930.0,108920.0,2.09317787]
[1752021794399,0.003,108930.0,108920.0,2.20326864]
[1752021801423,0.003,108930.0,108920.0,2.20318864]
[1752021802312,0.003,108930.0,108920.0,2.17568207]
[1752021803115,0.003,108930.0,108920.0,2.17568136]
[1752021808222,0.003,108930.0,108920.0,2.09309716]
[1752021808520,0.003,108930.0,108920.0,2.20318793]
[1752021811321,0.003,108930.0,108920.0,2.09309716]
[1752021812430,0.003,108930.0,108920.0,2.20318793]
[1752021819932,0.0668,108930.0,108920.0,2.20318793]
[1752021820131,0.0668,108930.0,108920.0,2.17004793]
[1752021822533,0.0668,108930.0,108920.0,2.19771394]
[1752021823535,0.0668,108930.0,108920.0,2.17416394]
[1752021823736,0.0668,108930.0,108920.0,2.19771394]
[1752021824734,0.08209,108930.0,108920.0,1.57415394]
[1752021824940,0.08209,108930.0,108920.0,2.16513394]
[1752021825135,0.08209,108930.0,108920.0,2.14158394]
[1752021825636,0.08209,108930.0,108920.0,2.16513394]
[1752021826136,0.08209,108930.0,108920.0,2.16513446]
[1752021826637,0.08209,108930.0,108920.0,2.15078641]
[1752021830833,0.08209,108930.0,108920.0,1.85898641]
[1752021834448,0.08209,108930.0,108920.0,1.72122963]
[1752021837451,0.0668,108930.0,108920.0,1.72122963]
[1752021837651,0.0668,108930.0,108920.0,1.83139275]